fUSD/lending_fUSD_20240627
["ID","MTS","AMOUNT","RATE_DAILY","PERIOD"]
[330479632,1719474643150,-492978.42142288,0.00013989,2]
[330479633,1719474643159,-151.0,0.00013989,2]
[330479634,1719474643169,-451.235888,0.00013989,2]
[330479635,1719474643178,-451.235888,0.00013989,2]
[330479636,1719474643187,-151.0,0.00013989,2]
[330479637,1719474643197,-151.0,0.00013989,2]
[330479638,1719474643206,-251.634445,0.00013989,2]
[330479639,1719474643216,-251.634445,0.00013989,2]
[330479640,1719474643225,-323.840018,0.00013989,2]
[330479641,1719474643234,-323.840018,0.00013989,2]
[330479642,1719474643243,-151.0,0.00013989,2]
[330479643,1719474643252,-151.0,0.00013989,2]
[330479644,1719474643262,-483.097515,0.00013989,2]
[330479645,1719474643272,-151.0,0.00013989,2]
[330479646,1719474643282,-483.097515,0.00013989,2]
[330479647,1719474643292,-151.0,0.00013989,2]
[330479648,1719474643302,-5673.251989,0.00013989,2]
[330479649,1719474643311,-159.803769,0.00013989,2]
[330479650,1719474643322,-757.705209,0.00013989,2]
[330479651,1719474643333,-151.0,0.00013989,2]
[330479652,1719474643344,-5673.251989,0.00013989,2]
[330479653,1719474643353,-757.705209,0.00013989,2]
[330479654,1719474643364,-151.0,0.00013989,2]
[330479655,1719474643375,-200.301335,0.00013989,2]
[330479656,1719474643385,-200.301335,0.00013989,2]
[330479657,1719474643394,-151.0,0.00013989,2]
[330479658,1719474643405,-168.520175,0.00013989,2]
[330479659,1719474643415,-552.531278,0.00013989,2]
[330479660,1719474643426,-168.520175,0.00013989,2]
[330479661,1719474643437,-552.531278,0.00013989,2]
[330479662,1719474643447,-151.0,0.00013989,2]
[330479663,1719474643457,-155.27941633,0.00013989,2]
[330479664,1719474643467,-151.0,0.00013989,2]
[330479665,1719474643478,-218.65116996,0.00013989,2]
[330479666,1719474643487,-151.0,0.00013989,2]
[330479667,1719474643498,-151.0,0.00013989,2]
[330479668,1719474643508,-155.74283372,0.00013989,2]
[330479669,1719474643519,-328.50066625,0.00013989,2]
[330479670,1719474643528,-617.0,0.00013989,2]
[330479671,1719474643538,-4130.85255089,0.00013999,2]
[330479672,1719474643548,-346.52954461,0.00013999,2]
[330479673,1719474643558,-297.40823142,0.00013999,2]
[330479674,1719474643569,-156.52572983,0.00013999,2]
[330479675,1719474643583,-736.0,0.00014,2]
[330479676,1719474643592,-262467.44645604,0.00014,2]
[330479677,1719474643602,-151.0,0.00014,2]
[330479678,1719474643612,-451.235888,0.00014,2]
[330479679,1719474643622,-451.235888,0.00014,2]
[330479680,1719474643635,-151.0,0.00014,2]
[330479681,1719474643647,-251.012184,0.00014,2]
[330479682,1719474643659,-251.634445,0.00014,2]
[330479683,1719474643677,-251.634445,0.00014,2]
[330479684,1719474643692,-323.840018,0.00014,2]
[330479685,1719474643705,-323.840018,0.00014,2]
[330479686,1719474643716,-151.0,0.00014,2]
[330479687,1719474643727,-151.0,0.00014,2]
[330479688,1719474643737,-483.097515,0.00014,2]
[330479689,1719474643748,-237.462612,0.00014,2]
[330479690,1719474643758,-483.097515,0.00014,2]
[330479691,1719474643768,-151.0,0.00014,2]
[330479692,1719474643779,-5673.251989,0.00014,2]
[330479693,1719474643790,-757.705209,0.00014,2]
[330479694,1719474643800,-151.0,0.00014,2]
[330479695,1719474643810,-5673.251989,0.00014,2]
[330479696,1719474643821,-757.705209,0.00014,2]
[330479697,1719474643832,-151.0,0.00014,2]
[330479698,1719474643842,-200.301335,0.00014,2]
[330479699,1719474643853,-200.301335,0.00014,2]
[330479700,1719474643863,-151.0,0.00014,2]
[330479701,1719474643872,-168.520175,0.00014,2]
[330479702,1719474643882,-552.531278,0.00014,2]
[330479703,1719474643891,-168.520175,0.00014,2]
[330479704,1719474643900,-552.531278,0.00014,2]
[330479705,1719474643910,-151.0,0.00014,2]
[330479706,1719474643919,-151.0,0.00014,2]
[330479707,1719474643928,-151.0,0.00014,2]
[330479708,1719474643938,-151.0,0.00014,2]
[330479709,1719474643948,-245.14704285,0.00014,2]
[330479710,1719474643957,-335.39080397,0.00014065,2]
[330479711,1719474643967,-1000.0,0.00014089,2]
[330479712,1719474643977,-155.14971563,0.00014099,2]
[330479713,1719474643986,-5645.34182478,0.00014304,2]
[330479714,1719474643996,-335.39080397,0.00014344,2]
[330479715,1719474644007,-190.93,0.00014384,2]
[330479716,1719474644016,-12754.9400006,0.000145,2]
[330479717,1719474644026,-447.625643,0.00014521,2]
[330479718,1719474644035,-19851.255504,0.00014562,2]
[330479719,1719474644045,-3933.41347704,0.00014582,2]
[330479720,1719474644055,-335.39080397,0.00014622,2]
[330479721,1719474644064,-823.0,0.00014721,2]
[330479722,1719474644074,-683.76,0.00014741,2]
[330479723,1719474644086,-175.775,0.00014848,2]
[330479724,1719474644096,-1740.75132699,0.00014875,2]
[330479725,1719474644106,-1879.20264844,0.000149,3]
[330479726,1719474644360,-335.39080397,0.000149,2]
[330479727,1719474644378,-300.0,0.00014999,5]
[330479728,1719474644387,-155.0,0.00014999,2]
[330479729,1719474644397,-22150.74655615,0.00015,2]
[330479730,1719474644406,-1000.0,0.00015,2]
[330479731,1719474644416,-490.0,0.00015,2]
[330479732,1719474644427,-317356.88037985,0.00015,2]
[330479733,1719474644436,-925.0,0.00015,2]
[330479734,1719474644445,-41149.1303252,0.00015,2]
[330479735,1719474644454,-5000.0,0.00015,2]
[330479736,1719474644463,-56649.79177713,0.00015,2]
[330479737,1719474644473,-414.0,0.00015,2]
[330479738,1719474644483,-151.0,0.00015,2]
[330479739,1719474644492,-151.0,0.00015,2]
[330479740,1719474644501,-151.0,0.00015,2]
[330479741,1719474644511,-163.529402,0.00015,2]
[330479742,1719474644520,-163.529402,0.00015,2]
[330479743,1719474644530,-1442.593941,0.00015,2]
[330479744,1719474644542,-151.0,0.00015,2]
[330479745,1719474644552,-151.0,0.00015,2]
[330479746,1719474644562,-1442.593941,0.00015,2]
[330479747,1719474644575,-151.0,0.00015,2]
[330479748,1719474644584,-151.0,0.00015,2]
[330479749,1719474644594,-762.342539,0.00015,2]
[330479750,1719474644603,-762.342539,0.00015,2]
[330479751,1719474644615,-151.0,0.00015,2]
[330479752,1719474644626,-151.0,0.00015,2]
[330479753,1719474644643,-451.235888,0.00015,2]
[330479754,1719474644657,-451.235888,0.00015,2]
[330479755,1719474644667,-451.235888,0.00015,2]
[330479756,1719474644676,-451.235888,0.00015,2]
[330479757,1719474644686,-151.0,0.00015,2]
[330479758,1719474644695,-151.0,0.00015,2]
[330479759,1719474644705,-151.0,0.00015,2]
[330479760,1719474644716,-151.0,0.00015,2]
[330479761,1719474644726,-251.634445,0.00015,2]
[330479762,1719474644736,-251.634445,0.00015,2]
[330479763,1719474644745,-251.634445,0.00015,2]
[330479764,1719474644755,-323.840018,0.00015,2]
[330479765,1719474644765,-251.634445,0.00015,2]
[330479766,1719474644774,-323.840018,0.00015,2]
[330479767,1719474644784,-323.840018,0.00015,2]
[330479768,1719474644793,-323.840018,0.00015,2]
[330479769,1719474644803,-151.0,0.00015,2]
[330479770,1719474644813,-151.0,0.00015,2]
[330479771,1719474644823,-151.0,0.00015,2]
[330479772,1719474644833,-151.0,0.00015,2]
[330479773,1719474644843,-483.097515,0.00015,2]
[330479774,1719474644852,-483.097515,0.00015,2]
[330479775,1719474644863,-483.097515,0.00015,2]
[330479776,1719474644873,-483.097515,0.00015,2]
[330479777,1719474644882,-151.0,0.00015,2]
[330479778,1719474644892,-151.0,0.00015,2]
[330479779,1719474644902,-5673.251989,0.00015,2]
[330479780,1719474644913,-5673.251989,0.00015,2]
[330479781,1719474644925,-757.705209,0.00015,2]
[330479782,1719474644936,-757.705209,0.00015,2]
[330479783,1719474644947,-151.0,0.00015,2]
[330479784,1719474644958,-151.0,0.00015,2]
[330479785,1719474644969,-5673.251989,0.00015,2]
[330479786,1719474644979,-757.705209,0.00015,2]
[330479787,1719474644990,-5673.251989,0.00015,2]
[330479788,1719474645000,-757.705209,0.00015,2]
[330479789,1719474645010,-151.0,0.00015,2]
[330479790,1719474645019,-151.0,0.00015,2]
[330479791,1719474645029,-200.301335,0.00015,2]
[330479792,1719474645039,-200.301335,0.00015,2]
[330479793,1719474645051,-200.301335,0.00015,2]
[330479794,1719474645063,-200.301335,0.00015,2]
[330479795,1719474645072,-151.0,0.00015,2]
[330479796,1719474645082,-168.520175,0.00015,2]
[330479797,1719474645092,-168.520175,0.00015,2]
[330479798,1719474645101,-552.531278,0.00015,2]
[330479799,1719474645110,-552.531278,0.00015,2]
[330479800,1719474645120,-168.520175,0.00015,2]
[330479801,1719474645130,-168.520175,0.00015,2]
[330479802,1719474645139,-552.531278,0.00015,2]
[330479803,1719474645149,-552.531278,0.00015,2]
[330479804,1719474645158,-151.0,0.00015,2]
[330479805,1719474645168,-151.0,0.00015,2]
[330479806,1719474645177,-151.0,0.00015,2]
[330479807,1719474645187,-151.0,0.00015,2]
[330479808,1719474645198,-162.618317,0.00015,2]
[330479809,1719474645208,-151.0,0.00015,2]
[330479810,1719474645218,-151.0,0.00015,2]
[330479811,1719474645228,-169.06,0.0001504,2]
[330479812,1719474645238,-300.0,0.00015068,2]
[330479813,1719474645249,-190.93,0.00015068,2]
[330479814,1719474645258,-10000.0,0.00015145,2]
[330479815,1719474645267,-297.60876197,0.0001515,2]
[330479816,1719474645277,-5645.34182478,0.00015191,2]
[330479817,1719474645287,-3933.41347704,0.00015264,2]
[330479818,1719474645298,-447.625643,0.00015342,2]
[330479819,1719474645307,-1000.0,0.00015654,2]
[330479820,1719474645316,-190.93,0.00015753,2]
[330479821,1719474645326,-167.0,0.00015831,2]
[330479822,1719474645335,-169.32,0.00015831,2]
[330479823,1719474645344,-3933.41347704,0.00015945,2]
[330479824,1719474645354,-1740.75132699,0.00015962,2]
[330479825,1719474645363,-1000.0,0.00016,2]
[330479826,1719474645373,-5645.34182478,0.00016078,2]
[330479827,1719474645382,-5883.64,0.00016116,2]
[330479828,1719474645392,-447.625643,0.00016164,2]
[330479829,1719474645402,-167.01,0.00016207,2]
[330479830,1719474645412,-3000.0,0.0001635,2]
[330479831,1719474645421,-167.0,0.00016354,2]
[330479832,1719474645431,-297.60876197,0.000164,2]
[330479833,1719474645441,-184.61,0.00016438,2]
[330479834,1719474645451,-300.0,0.00016438,2]
[330479835,1719474645460,-190.93,0.00016438,2]
[330479836,1719474645469,-970.829942,0.00016438,2]
[330479837,1719474645479,-970.829942,0.00016438,2]
[330479838,1719474645488,-970.829942,0.00016438,2]
[330479839,1719474645497,-970.829942,0.00016438,2]
[330479840,1719474645507,-970.829942,0.00016438,2]
[330479841,1719474645517,-970.829942,0.00016438,2]
[330479842,1719474645526,-970.829942,0.00016438,2]
[330479843,1719474645536,-970.829942,0.00016438,2]
[330479844,1719474645546,-1165.75286774,0.00016478,2]
[330479845,1719474645555,-3933.41347704,0.00016627,2]
[330479846,1719474645563,-192.03,0.00016712,2]
[330479847,1719474645577,-167.0,0.00016876,2]
[330479848,1719474645586,-5645.34182478,0.00016965,2]
[330479849,1719474645596,-1635.263365,0.00016969,2]
[330479850,1719474645606,-447.625643,0.00016986,2]
[330479851,1719474645618,-1000.0,0.00017,3]
[330479852,1719474645628,-683.76,0.00017004,2]
[330479853,1719474645638,-1740.75132699,0.0001705,2]
[330479854,1719474645647,-600.0,0.00017165,2]
[330479855,1719474645658,-1000.0,0.0001722,2]
[330479857,1719474645669,-6631.67942079,0.0001726,2]
[330479858,1719474645680,-3933.41347704,0.00017309,2]
[330479859,1719474645689,-167.0,0.00017399,2]
[330479860,1719474645699,-307.9879927,0.00017631,2]
[330479861,1719474645708,-297.60876197,0.0001765,2]
[330479862,1719474645720,-193.26382296,0.0001765,2]
[330479863,1719474645731,-501.31127049,0.000177,2]
[330479864,1719474645741,-247.00917619,0.00017703,2]
[330479865,1719474645751,-447.625643,0.00017808,2]
[330479866,1719474645761,-5645.34182478,0.00017852,2]
[330479867,1719474645771,-5673.251989,0.00017852,2]
[330479868,1719474645782,-757.705209,0.00017852,2]
[330479869,1719474645791,-151.289769,0.00017852,2]
[330479870,1719474645802,-5673.251989,0.00017852,2]
[330479871,1719474645813,-757.705209,0.00017852,2]
[330479872,1719474645823,-151.0,0.00017852,2]
[330479873,1719474645832,-200.301335,0.00017852,2]
[330479874,1719474645842,-200.301335,0.00017852,2]
[330479875,1719474645852,-168.520175,0.00017852,2]
[330479876,1719474645863,-552.531278,0.00017852,2]
[330479877,1719474645873,-168.520175,0.00017852,2]
[330479878,1719474645883,-151.0,0.00017852,2]
[330479879,1719474645893,-151.0,0.00017852,2]
[330479880,1719474645902,-552.531278,0.00017852,2]
[330479881,1719474645912,-151.0,0.00017852,2]
[330479882,1719474645921,-600.0,0.0001788,2]
[330479883,1719474645931,-167.0,0.00017921,2]
[330479884,1719474645940,-3933.41347704,0.00017991,2]
[330479885,1719474645949,-370.27430286,0.00018,2]
[330479886,1719474645958,-1114.91943468,0.00018,2]
[330479887,1719474645968,-10522.27744621,0.00018,2]
[330479888,1719474645977,-1001.0,0.00018,3]
[330479889,1719474645988,-151.0,0.00018,2]
[330479890,1719474645998,-451.235888,0.00018,2]
[330479891,1719474646008,-451.235888,0.00018,2]
[330479892,1719474646018,-151.0,0.00018,2]
[330479893,1719474646027,-251.634445,0.00018,2]
[330479894,1719474646037,-251.634445,0.00018,2]
[330479895,1719474646046,-323.840018,0.00018,2]
[330479896,1719474646056,-323.840018,0.00018,2]
[330479897,1719474646065,-151.0,0.00018,2]
[330479898,1719474646075,-151.0,0.00018,2]
[330479899,1719474646084,-483.097515,0.00018,2]
[330479900,1719474646094,-483.097515,0.00018,2]
[330479901,1719474646103,-970.829942,0.00018,2]
[330479902,1719474646113,-970.829942,0.00018,2]
[330479903,1719474646123,-151.0,0.00018,2]
[330479904,1719474646133,-252.97741082,0.00018,2]
[330479905,1719474646144,-252.97741082,0.00018,2]
[330479906,1719474646155,-252.97741082,0.00018,2]
[330479907,1719474646165,-252.97741082,0.00018,2]
[330479908,1719474646174,-252.97741082,0.00018,2]
[330479909,1719474646186,-252.97741082,0.00018,2]
[330479910,1719474646196,-252.97741082,0.00018,2]
[330479912,1719474646206,-252.97741082,0.00018,2]
[330479914,1719474646215,-252.97741082,0.00018,2]
[330479915,1719474646225,-252.97741082,0.00018,2]
[330479916,1719474646234,-252.97741082,0.00018,2]
[330479917,1719474646244,-252.97741082,0.00018,2]
[330479918,1719474646253,-252.97741082,0.00018,2]
[330479919,1719474646263,-252.97741082,0.00018,2]
[330479920,1719474646273,-252.97741082,0.00018,2]
[330479921,1719474646282,-252.97741082,0.00018,2]
[330479922,1719474646292,-252.97741082,0.00018,2]
[330479923,1719474646302,-252.97741082,0.00018,2]
[330479924,1719474646312,-252.97741082,0.00018,2]
[330479925,1719474646321,-252.97741082,0.00018,2]
[330479926,1719474646331,-252.97741082,0.00018,2]
[330479927,1719474646341,-252.97741082,0.00018,2]
[330479928,1719474646351,-252.97741082,0.00018,2]
[330479929,1719474646362,-252.97741082,0.00018,2]
[330479930,1719474646372,-252.97741082,0.00018,2]
[330479931,1719474646384,-252.97741082,0.00018,2]
[330479932,1719474646394,-169.06,0.00018048,2]
[330479933,1719474646403,-1667.56564023,0.000181,2]
[330479934,1719474646413,-390.10335542,0.000181,10]
[330479935,1719474646422,-1740.75132699,0.00018137,2]
[330479936,1719474646432,-163.10807036,0.00018182,2]
[330479937,1719474646442,-219.433659,0.00018361,2]
[330479938,1719474646454,-167.0,0.00018444,2]
[330479939,1719474646464,-169.32,0.00018444,2]
[330479940,1719474646477,-167.01,0.00018522,2]
[330479941,1719474646486,-600.0,0.00018625,2]
[330479942,1719474646496,-447.625643,0.0001863,2]
[330479943,1719474646506,-3933.41347704,0.00018673,2]
[330479944,1719474646515,-5645.34182478,0.00018739,2]
[330479945,1719474646526,-1000.0,0.00018785,2]
[330479946,1719474646536,-3000.0,0.0001885,2]
[330479947,1719474646546,-297.60876197,0.000189,2]
[330479948,1719474646555,-160.75,0.000189,2]
[330479949,1719474646565,-160.75,0.000189,2]
[330479950,1719474646580,-160.75,0.000189,2]
[330479951,1719474646589,-155.34957523,0.00019,2]
[330479952,1719474646600,-155.1650936,0.00019,2]
[330479953,1719474646610,-1000.0,0.00019,3]
[330479954,1719474646620,-590.0,0.00019,3]
[330479955,1719474646630,-419.58149071,0.00019,2]
[330479956,1719474646641,-419.58149071,0.00019,2]
[330479957,1719474646653,-419.58149071,0.00019,2]
[330479958,1719474646664,-715.80566214,0.00019091,2]
[330479959,1719474646674,-500.0,0.00019178,2]
[330479960,1719474646686,-200.0,0.00019178,2]
[330479961,1719474646696,-500.0,0.00019178,2]
[330479962,1719474646707,-500.0,0.00019178,2]
[330479963,1719474646718,-500.0,0.00019178,2]
[330479964,1719474646727,-500.0,0.00019178,2]
[330479965,1719474646738,-512.36404598,0.00019178,2]
[330479966,1719474646748,-500.0,0.00019178,2]
[330479967,1719474646758,-271.74998696,0.00019178,2]
[330479968,1719474646768,-500.0,0.00019178,2]
[330479969,1719474646778,-606.12502041,0.00019178,2]
[330479970,1719474646788,-500.0,0.00019178,2]
[330479971,1719474646798,-500.0,0.00019178,2]
[330479972,1719474646808,-500.0,0.00019178,2]
[330479973,1719474646819,-500.0,0.00019178,2]
[330479974,1719474646832,-500.0,0.00019178,2]
[330479975,1719474646843,-500.0,0.00019178,2]
[330479976,1719474646855,-500.0,0.00019178,2]
[330479977,1719474646865,-500.0,0.00019178,2]
[330479978,1719474646875,-500.0,0.00019178,2]
[330479979,1719474646886,-500.0,0.00019178,2]
[330479980,1719474646897,-500.0,0.00019178,2]
[330479981,1719474646907,-500.0,0.00019178,2]
[330479982,1719474646918,-500.0,0.00019178,2]
[330479983,1719474646927,-500.0,0.00019178,2]
[330479984,1719474646936,-500.0,0.00019178,2]
[330479985,1719474646946,-500.0,0.00019178,2]
[330479986,1719474646955,-500.0,0.00019178,2]
[330479987,1719474646964,-500.0,0.00019178,2]
[330479988,1719474646973,-500.0,0.00019178,2]
[330479989,1719474646984,-500.0,0.00019178,2]
[330479990,1719474646993,-500.0,0.00019178,2]
[330479991,1719474647002,-500.0,0.00019178,2]
[330479992,1719474647012,-500.0,0.00019178,2]
[330479993,1719474647021,-500.0,0.00019178,2]
[330479994,1719474647031,-500.0,0.00019178,2]
[330479995,1719474647041,-500.0,0.00019178,2]
[330479996,1719474647051,-500.0,0.00019178,2]
[330479997,1719474647061,-500.0,0.00019178,2]
[330479998,1719474647071,-500.0,0.00019178,2]
[330479999,1719474647081,-500.0,0.00019178,2]
[330480000,1719474647090,-500.0,0.00019178,2]
[330480001,1719474647101,-500.0,0.00019178,2]
[330480002,1719474647110,-500.0,0.00019178,2]
[330480003,1719474647120,-500.0,0.00019178,2]
[330480004,1719474647130,-500.0,0.00019178,2]
[330480005,1719474647140,-500.0,0.00019178,2]
[330480006,1719474647150,-500.0,0.00019178,2]
[330480007,1719474647160,-500.0,0.00019178,2]
[330480008,1719474647170,-500.0,0.00019178,2]
[330480009,1719474647180,-500.0,0.00019178,2]
[330480010,1719474647190,-337.57123797,0.00019178,2]
[330480011,1719474647200,-500.0,0.00019178,2]
[330480012,1719474647210,-500.0,0.00019178,2]
[330480013,1719474647219,-500.0,0.00019178,2]
[330480014,1719474647230,-500.0,0.00019178,2]
[330480015,1719474647240,-500.0,0.00019178,2]
[330480016,1719474647250,-500.0,0.00019178,2]
[330480017,1719474647260,-500.0,0.00019178,2]
[330480018,1719474647270,-500.0,0.00019178,2]
[330480019,1719474647280,-200.00000001,0.00019178,2]
[330480020,1719474647290,-175.6440118,0.00019178,2]
[330480021,1719474647301,-500.0,0.00019178,2]
[330480022,1719474647310,-500.0,0.00019178,2]
[330480023,1719474647320,-422.84295384,0.00019178,2]
[330480024,1719474647330,-244.07579236,0.00019178,2]
[330480025,1719474647341,-500.0,0.00019178,2]
[330480026,1719474647351,-500.0,0.00019178,2]
[330480027,1719474647361,-500.0,0.00019178,2]
[330480028,1719474647371,-500.0,0.00019178,2]
[330480029,1719474647381,-645.09986807,0.00019178,2]
[330480030,1719474647390,-500.0,0.00019178,2]
[330480031,1719474647400,-500.0,0.00019178,2]
[330480032,1719474647409,-500.0,0.00019178,2]
[330480033,1719474647419,-500.0,0.00019178,2]
[330480034,1719474647428,-500.0,0.00019178,2]
[330480035,1719474647438,-500.0,0.00019178,2]
[330480036,1719474647447,-500.0,0.00019178,2]
[330480037,1719474647457,-500.0,0.00019178,2]
[330480038,1719474647466,-500.0,0.00019178,2]
[330480039,1719474647476,-500.0,0.00019178,2]
[330480040,1719474647485,-500.0,0.00019178,2]
[330480041,1719474647494,-500.0,0.00019178,2]
[330480042,1719474647978,-500.0,0.00019178,2]
[330480043,1719474647997,-383.57063357,0.00019178,2]
[330480044,1719474648008,-500.0,0.00019178,2]
[330480045,1719474648018,-500.0,0.00019178,2]
[330480046,1719474648028,-500.0,0.00019178,2]
[330480047,1719474648037,-500.0,0.00019178,2]
[330480048,1719474648047,-500.0,0.00019178,2]
[330480049,1719474648058,-500.0,0.00019178,2]
[330480050,1719474648068,-500.0,0.00019178,2]
[330480051,1719474648077,-500.0,0.00019178,2]
[330480052,1719474648087,-339.26197836,0.00019178,2]
[330480053,1719474648097,-500.0,0.00019178,2]
[330480054,1719474648107,-500.0,0.00019178,2]
[330480055,1719474648117,-500.0,0.00019178,2]
[330480056,1719474648126,-500.0,0.00019178,2]
[330480057,1719474648136,-155.813053,0.00019178,2]
[330480058,1719474648147,-186.6938,0.00019178,2]
[330480059,1719474648157,-151.0,0.00019178,2]
[330480060,1719474648166,-163.529402,0.00019178,2]
[330480061,1719474648175,-163.529402,0.00019178,2]
[330480062,1719474648185,-1442.593941,0.00019178,2]
[330480063,1719474648194,-151.0,0.00019178,2]
[330480064,1719474648203,-151.0,0.00019178,2]
[330480065,1719474648213,-1442.593941,0.00019178,2]
[330480066,1719474648222,-151.0,0.00019178,2]
[330480067,1719474648231,-151.0,0.00019178,2]
[330480068,1719474648240,-762.342539,0.00019178,2]
[330480069,1719474648250,-762.342539,0.00019178,2]
[330480070,1719474648260,-151.0,0.00019178,2]
[330480071,1719474648269,-451.235888,0.00019178,2]
[330480072,1719474648278,-451.235888,0.00019178,2]
[330480073,1719474648288,-151.0,0.00019178,2]
[330480074,1719474648302,-151.0,0.00019178,2]
[330480075,1719474648312,-151.0,0.00019178,2]
[330480076,1719474648321,-251.634445,0.00019178,2]
[330480077,1719474648333,-251.634445,0.00019178,2]
[330480078,1719474648343,-323.840018,0.00019178,2]
[330480079,1719474648353,-323.840018,0.00019178,2]
[330480080,1719474648364,-151.0,0.00019178,2]
[330480081,1719474648375,-151.0,0.00019178,2]
[330480082,1719474648385,-483.097515,0.00019178,2]
[330480083,1719474648395,-483.097515,0.00019178,2]
[330480084,1719474648404,-970.829942,0.00019178,2]
[330480085,1719474648413,-970.829942,0.00019178,2]
[330480086,1719474648422,-151.0,0.00019178,2]
[330480087,1719474648432,-5673.251989,0.00019178,2]
[330480088,1719474648441,-757.705209,0.00019178,2]
[330480089,1719474648451,-5673.251989,0.00019178,2]
[330480090,1719474648460,-757.705209,0.00019178,2]
[330480091,1719474648470,-154.555716,0.00019178,2]
[330480092,1719474648479,-200.301335,0.00019178,2]
[330480093,1719474648489,-200.301335,0.00019178,2]
[330480094,1719474648498,-168.520175,0.00019178,2]
[330480095,1719474648507,-552.531278,0.00019178,2]
[330480096,1719474648517,-168.520175,0.00019178,2]
[330480097,1719474648526,-272.67024,0.00019178,2]
[330480098,1719474648535,-151.0,0.00019178,2]
[330480099,1719474648545,-552.531278,0.00019178,2]
[330480100,1719474648560,-151.0,0.00019178,2]
[330480101,1719474648570,-5370.6,0.00019178,2]
[330480102,1719474648583,-250.0,0.00019178,2]
[330480103,1719474648594,-256.01,0.00019178,2]
[330480104,1719474648603,-1740.75132699,0.00019225,2]
[330480105,1719474648612,-226.97665617,0.00019229,2]
[330480106,1719474648623,-683.76,0.00019268,2]
[330480107,1719474648632,-3933.41347704,0.00019355,2]
[330480108,1719474648641,-2108.008,0.00019361,2]
[330480109,1719474648652,-425.466,0.00019361,2]
[330480110,1719474648660,-447.625643,0.00019452,2]
[330480111,1719474648669,-160.68214853,0.00019565,2]
[330480112,1719474648680,-5645.34182478,0.00019626,2]
[330480113,1719474648690,-527.96,0.00019699,2]
[330480114,1719474648700,-354.51,0.00019699,2]
[330480115,1719474648709,-321.16,0.00019699,2]
[330480116,1719474648720,-527.96,0.00019699,2]
[330480117,1719474648730,-150.0,0.00019699,2]
[330480118,1719474648741,-4596.68335083,0.000199,3]
[330480119,1719474648751,-19446.7643,0.000199,2]
[330480120,1719474648761,-151.0,0.000199,2]
[330480121,1719474648772,-151.0,0.000199,2]
[330480122,1719474648782,-151.0,0.000199,2]
[330480123,1719474648793,-151.0,0.000199,2]
[330480124,1719474648806,-151.0,0.000199,2]
[330480125,1719474648816,-151.0,0.000199,2]
[330480126,1719474648826,-151.0,0.000199,2]
[330480127,1719474648835,-151.0,0.000199,2]
[330480128,1719474648845,-151.0,0.000199,2]
[330480129,1719474648855,-151.0,0.000199,2]
[330480130,1719474648865,-595.35501635,0.000199,2]
[330480131,1719474648875,-439.96793584,0.000199,2]
[330480132,1719474648886,-1000.0,0.00019958,2]
[330480133,1719474648895,-367.60401198,0.00019964,2]
[330480134,1719474648906,-9571.31272348,0.00019964,2]